bitfinex-derivatives/quotes_ETHF0:USTF0_20230830
["timestamp","ask_amount","ask_price","bid_price","bid_amount"]
[1693394933092,3.3373703,1718.4,1718.3,23.07781849]
[1693394933287,0.29100452,1718.4,1718.3,23.07781849]
[1693394935291,3.33736271,1718.4,1718.3,23.07781849]
[1693394935490,3.33736271,1718.4,1718.3,25.36573794]
[1693394935789,3.33736271,1718.4,1718.3,23.07781849]
[1693394937093,0.29100452,1718.4,1718.3,23.07781849]
[1693394938894,4.09480398,1718.4,1718.3,21.37693103]
[1693394942296,4.09480398,1718.4,1718.3,19.94334927]
[1693394943501,4.09904407,1718.4,1718.3,19.9450973]
[1693394946197,3.33765036,1718.4,1718.3,23.93683165]
[1693394946587,3.33765036,1718.4,1718.3,25.37041341]
[1693394946991,0.2910021,1718.4,1718.3,25.37041341]
[1693394949394,4.09904407,1718.4,1718.3,25.37041341]
[1693394951895,4.09904407,1718.4,1718.3,23.84338575]
[1693394952496,4.09904407,1718.4,1718.3,22.40980399]
[1693394954000,0.2910021,1718.4,1718.3,19.94557575]
[1693394954500,0.2910021,1718.4,1718.3,21.37915751]
[1693394960411,0.2910021,1718.4,1718.3,19.94557575]
[1693394961207,3.80932657,1718.4,1718.3,23.93777721]
[1693394961403,4.10032867,1718.4,1718.3,23.93777721]
[1693394965210,4.10032867,1718.4,1718.3,25.37135897]
[1693394965811,4.10032867,1718.4,1718.3,20.13835897]
[1693394966008,6.67350825,1718.4,1718.3,17.84781748]
[1693394966313,4.10032867,1718.4,1718.3,17.84781748]
[1693394966911,6.67350825,1718.4,1718.3,17.84781748]
[1693394967105,4.10032867,1718.4,1718.3,17.84781748]
[1693394967914,6.67350825,1718.4,1718.3,17.84781748]
[1693394968107,4.10032867,1718.4,1718.3,17.84781748]
[1693394968715,6.67350825,1718.4,1718.3,23.08081748]
[1693394969017,4.10032867,1718.4,1718.3,23.84385286]
[1693394969314,4.10032867,1718.4,1718.3,23.08060065]
[1693394976317,3.33805994,1718.4,1718.3,23.84371188]
[1693394980222,3.33805994,1718.4,1718.3,24.72507372]
[1693394987633,3.33805994,1718.4,1718.3,23.84371188]
[1693394991443,4.10032867,1718.4,1718.3,21.37882573]
[1693394992539,0.2910021,1718.4,1718.3,19.8516514]
[1693394998444,4.09879712,1718.4,1718.3,21.37882573]
[1693395000444,4.09879712,1718.4,1718.3,14.94484397]
[1693395000646,4.09879712,1718.4,1718.3,13.41766964]
[1693395001144,4.09879712,1718.4,1718.3,5.6974206]
[1693395001953,4.09879712,1718.4,1718.3,0.4644206]
[1693395002250,4.09879712,1718.4,1718.2,6.76890363]
[1693395002549,3.04589802,1718.3,1718.2,6.76890363]
[1693395002746,3.04589802,1718.3,1718.2,8.48002269]
[1693395002941,3.33690012,1718.3,1718.2,8.48002269]
[1693395003149,3.04589802,1718.3,1718.2,8.48002269]
[1693395003852,3.33690012,1718.3,1718.2,8.48002269]
[1693395004048,3.04589802,1718.3,1718.2,8.95534626]
[1693395004448,2.75490012,1718.3,1718.2,8.95534626]
[1693395004949,7.30659712,1718.3,1718.2,0.47532357]
[1693395005147,9.8961021,1718.3,1717.9,2.75272914]
[1693395005345,12.24724398,1718.0,1717.9,0.46218765]
[1693395005650,12.53824608,1718.0,1717.7,7.52354149]
[1693395005852,2.28208705,1717.8,1717.7,7.52354149]
[1693395006048,2.28208705,1717.8,1717.7,10.62997572]
[1693395006650,2.28208705,1717.8,1717.7,6.66658176]
[1693395007244,2.28208705,1717.8,1717.7,5.233]
[1693395007550,1.52033007,1717.8,1717.7,5.233]
[1693395007948,1.52033007,1717.8,1717.7,5.69988511]
[1693395008150,1.52033007,1717.8,1717.7,7.13346687]
[1693395008746,0.93823007,1717.8,1717.7,7.13346687]
[1693395009154,0.35613007,1717.8,1717.7,7.13346687]
[1693395009552,2.05611712,1717.9,1717.7,7.13346687]
[1693395009753,2.05611712,1717.9,1717.7,14.73070452]
[1693395009955,2.05611712,1717.9,1717.8,2.482]
[1693395010148,2.05611712,1717.9,1717.8,9.98493648]
[1693395010349,2.05611712,1717.9,1717.8,17.54381026]
[1693395010554,3.2078,1718.0,1717.8,17.54381026]
[1693395010855,3.2078,1718.0,1717.9,1.43358176]
[1693395011159,3.49887461,1718.0,1717.9,4.05108176]
[1693395011347,3.49887461,1718.0,1717.9,2.6175]
[1693395011947,3.49887461,1718.0,1717.9,7.8505]
[1693395012153,3.49887461,1718.0,1717.9,9.28408176]
[1693395012352,3.49887461,1718.0,1717.9,7.8505]
[1693395012548,3.2078,1718.0,1717.9,7.8505]
[1693395013959,3.2078,1718.0,1717.9,9.28408176]
[1693395014160,3.2078,1718.0,1717.9,7.8505]
[1693395014560,3.2078,1718.0,1717.9,9.28408176]
[1693395020261,3.2078,1718.0,1717.9,7.8505]
[1693395020456,3.2078,1718.0,1717.9,9.28408176]
[1693395021859,3.2078,1718.0,1717.9,4.05108176]
[1693395024061,3.2078,1718.2,1717.9,16.72819034]
[1693395024259,3.2078,1718.2,1718.1,5.233]
[1693395024462,2.6257,1718.2,1718.1,6.66658176]
[1693395024659,2.6257,1718.2,1718.1,16.69695533]
[1693395024858,2.0437,1718.2,1718.1,16.69695533]
[1693395025260,8.4408,1718.4,1718.1,16.69695533]
[1693395025560,0.29105389,1718.3,1718.2,2.26993648]
[1693395025862,0.29105389,1718.3,1718.2,4.78053648]
[1693395033873,4.09749787,1718.3,1718.2,4.78053648]
[1693395036479,3.32948151,1718.3,1718.2,4.78053648]
[1693395036681,3.32948151,1718.3,1718.2,12.48774667]
[1693395041982,3.32948151,1718.3,1718.2,17.72074667]
[1693395043882,4.09749787,1718.3,1718.2,17.72074667]
[1693395051888,3.33319859,1718.3,1718.2,17.72074667]
[1693395062500,0.29105389,1718.3,1718.2,17.72074667]
[1693395064499,4.09749787,1718.3,1718.2,17.72074667]
[1693395065099,4.09749787,1718.3,1718.2,15.45081019]
[1693395065303,9.33049787,1718.3,1718.2,7.70721019]
[1693395066906,9.33049787,1718.3,1718.2,9.14079195]
[1693395069105,11.8334963,1718.3,1718.2,9.14079195]
[1693395069303,9.33049787,1718.3,1718.2,9.14079195]
[1693395070107,11.8334963,1718.3,1718.2,9.14079195]
[1693395070405,9.33049787,1718.3,1718.2,9.14079195]
[1693395071198,11.8334963,1718.3,1718.2,9.14079195]
[1693395071398,9.33049787,1718.3,1718.2,9.14079195]
[1693395071809,11.8334963,1718.3,1718.2,9.14079195]
[1693395072005,6.6004963,1718.3,1718.2,9.14079195]
[1693395072205,4.09749787,1718.3,1718.2,9.14079195]
[1693395072606,6.6004963,1718.3,1718.2,9.14079195]
[1693395072807,4.09749787,1718.3,1718.2,9.14079195]
[1693395076206,4.09749787,1718.3,1718.2,9.14079195]
[1693395076604,6.6004963,1718.3,1718.2,9.14079195]
[1693395076805,4.09749787,1718.3,1718.2,9.14079195]
[1693395077508,6.6004963,1718.3,1718.2,9.14079195]
[1693395077708,4.09749787,1718.3,1718.2,9.14079195]
[1693395078309,6.6004963,1718.3,1718.2,9.14079195]
[1693395078613,4.09749787,1718.3,1718.2,9.14079195]
[1693395079314,6.6004963,1718.3,1718.2,9.14079195]
[1693395079513,4.09749787,1718.3,1718.2,9.14079195]
[1693395080111,6.6004963,1718.3,1718.2,9.14079195]
[1693395080312,4.09749787,1718.3,1718.2,9.14079195]
[1693395080505,0.29105389,1718.3,1718.2,9.14079195]
[1693395081207,2.79405232,1718.3,1718.2,9.14079195]
[1693395081608,0.29105389,1718.3,1718.2,9.14079195]
[1693395082413,2.79405232,1718.3,1718.2,9.14079195]
[1693395082608,0.29105389,1718.3,1718.2,9.14079195]
[1693395083210,2.79405232,1718.3,1718.2,9.14079195]
[1693395083511,2.79405232,1718.3,1718.2,14.37379195]
[1693395083703,3.04757734,1718.3,1718.2,18.41243444]
[1693395084009,3.04757734,1718.3,1718.2,16.12189295]
[1693395084209,3.04757734,1718.3,1718.2,19.17594827]
[1693395084210,2.75663123,1718.3,1718.2,19.17594827]
[1693395084407,0.29105389,1718.3,1718.2,18.4119596]
[1693395084711,15.62985109,1718.7,1718.2,20.68189608]
[1693395084909,15.04785109,1718.7,1718.6,5.233]
[1693395085109,3.87366743,1718.7,1718.6,5.233]
[1693395085315,3.87366743,1718.7,1718.6,6.66658176]
[1693395086414,3.87366743,1718.7,1718.6,11.85778176]
[1693395087411,6.37666586,1718.7,1718.6,11.85778176]
[1693395087617,2.50299843,1718.7,1718.6,11.85778176]
[1693395087816,16.88498209,1718.8,1718.6,11.85778176]
[1693395088618,17.35853091,1718.8,1718.6,11.85778176]
[1693395089817,11.17418366,1718.7,1718.6,11.85778176]
[1693395090209,6.18434725,1718.8,1718.6,11.85778176]
[1693395091921,11.41734725,1718.8,1718.6,6.62478176]
[1693395100224,22.59153091,1718.8,1718.6,6.62478176]
[1693395100424,2.50299843,1718.7,1718.6,6.62478176]
[1693395102831,2.50299843,1718.7,1718.6,14.13628313]
[1693395103733,6.30481561,1718.7,1718.6,14.13628313]
[1693395104229,2.50299843,1718.7,1718.6,14.13628313]
[1693395104626,13.0033261,1718.8,1718.6,14.13628313]
[1693395104829,0.29099008,1718.7,1718.6,16.40621961]
[1693395105732,2.79398851,1718.7,1718.6,16.40621961]
[1693395105930,0.29099008,1718.7,1718.6,16.40621961]
[1693395106134,0.29099008,1718.7,1718.6,21.63921961]
[1693395109528,3.80182427,1718.7,1718.6,21.63921961]
[1693395109729,4.09281435,1718.7,1718.6,21.63921961]
[1693395110029,3.51101435,1718.7,1718.6,21.63921961]
[1693395110332,2.92921435,1718.7,1718.6,21.63921961]
[1693395110728,2.34741435,1718.7,1718.6,21.63921961]
[1693395111229,2.91699008,1718.8,1718.6,21.63921961]
[1693395111728,2.33519008,1718.8,1718.6,21.63921961]
[1693395112129,2.75009624,1718.9,1718.6,21.63921961]
[1693395112529,2.16829624,1718.9,1718.6,21.63921961]
[1693395112936,1.58649624,1718.9,1718.6,21.63921961]
[1693395113433,1.00469624,1718.9,1718.6,21.63921961]
[1693395113835,0.42289624,1718.9,1718.6,21.63921961]
[1693395114135,19.976987,1719.0,1718.6,21.63921961]
[1693395114328,3.04087535,1718.7,1718.6,21.63921961]
[1693395115238,3.04087535,1718.8,1718.6,21.63921961]
[1693395117335,2.45907535,1718.8,1718.6,21.63921961]
[1693395117637,1.87727535,1718.8,1718.6,21.63921961]
[1693395118036,1.29547535,1718.8,1718.6,21.63921961]
[1693395118537,0.71367535,1718.8,1718.6,21.63921961]
[1693395119038,0.13187535,1718.8,1718.6,21.63921961]
[1693395119234,24.63412136,1719.0,1718.6,21.63921961]
[1693395119435,24.63412136,1719.0,1718.7,5.233]
[1693395119835,24.63412136,1719.0,1718.8,2.5854]
[1693395121841,5.233,1718.9,1718.8,2.5854]
[1693395123742,5.233,1718.9,1718.8,4.01898176]
[1693395123943,5.233,1718.9,1718.8,6.46288176]
[1693395124338,7.20855838,1718.9,1718.8,6.46288176]
[1693395124646,18.38179577,1718.9,1718.8,5.0293]
[1693395125047,18.38179577,1718.9,1718.8,6.46288176]
[1693395125247,18.38179577,1718.9,1718.8,5.0293]
[1693395126048,18.38179577,1718.9,1718.8,6.46288176]
[1693395126549,18.38179577,1718.9,1718.8,5.0293]
[1693395130854,18.38179577,1718.9,1718.8,6.46288176]
[1693395131247,18.67276671,1718.9,1718.8,6.46288176]
[1693395131453,18.67276671,1718.9,1718.8,5.0293]
[1693395133756,18.67281927,1718.9,1718.8,5.0293]
[1693395134351,23.23534537,1718.9,1718.8,5.0293]
[1693395138867,23.2353045,1718.9,1718.8,5.0293]
[1693395141474,18.6727784,1718.9,1718.8,5.0293]
[1693395143470,18.6727784,1718.9,1718.8,6.46288176]
[1693395143869,18.6727784,1718.9,1718.8,5.0293]
[1693395147070,18.6727784,1718.9,1718.8,6.46288176]
[1693395147371,23.2353045,1718.9,1718.8,6.46288176]
[1693395147569,18.6727784,1718.9,1718.8,6.46288176]
[1693395147770,23.2353045,1718.9,1718.8,6.46288176]
[1693395149173,18.6727784,1718.9,1718.8,6.46288176]
[1693395149375,23.2353045,1718.9,1718.8,6.46288176]
[1693395151073,23.2353045,1718.9,1718.8,5.0293]
[1693395151873,18.0023045,1718.9,1718.8,5.0293]
[1693395153067,18.0023045,1718.9,1718.8,6.46288176]
[1693395154478,18.0023045,1718.9,1718.8,5.0293]
[1693395154778,18.0023045,1718.9,1718.8,6.46288176]
[1693395155678,18.0023045,1718.9,1718.8,8.73281824]
[1693395157977,18.0023045,1718.9,1718.8,7.29923648]
[1693395158875,18.00208629,1718.9,1718.8,7.29923648]
[1693395161282,18.00208629,1718.9,1718.8,8.73281824]
[1693395162180,18.00208629,1718.9,1718.8,5.0293]
[1693395164285,23.23508629,1718.9,1718.8,5.0293]
[1693395170600,18.67256019,1718.9,1718.8,5.0293]
[1693395170894,21.25952791,1718.9,1718.8,5.0293]
[1693395171186,23.23508629,1718.9,1718.8,5.0293]
[1693395173292,23.23501462,1718.9,1718.8,5.0293]
[1693395174593,23.23501462,1718.9,1718.8,2.5854]
[1693395176895,23.2350475,1718.9,1718.8,2.5854]
[1693395180793,18.0020475,1718.9,1718.8,9.25198176]
[1693395181285,16.02648912,1718.9,1718.8,9.25198176]
[1693395181691,4.85349704,1718.9,1718.8,9.25198176]
[1693395181995,4.85349704,1718.9,1718.8,4.01898176]
[1693395182195,18.0020475,1718.9,1718.8,4.01898176]
[1693395184398,13.4395214,1718.9,1718.8,4.01898176]
[1693395186798,18.0020475,1718.9,1718.8,4.01898176]
[1693395193904,13.4395214,1718.9,1718.8,4.01898176]
[1693395222229,0.29097094,1718.9,1718.8,4.01898176]
[1693395231631,0.29097094,1718.9,1718.8,7.22678176]
[1693395231829,4.09984217,1718.9,1718.8,7.22678176]
[1693395232138,4.09957916,1718.9,1718.8,13.98423006]
[1693395233736,3.51787916,1718.9,1718.8,13.98423006]
[1693395234232,2.93607916,1718.9,1718.8,13.98423006]
[1693395234631,2.35427916,1718.9,1718.8,13.98423006]
[1693395235035,1.77247916,1718.9,1718.8,13.98423006]
[1693395235434,1.19067916,1718.9,1718.8,13.98423006]
[1693395235936,0.60887916,1718.9,1718.8,13.98423006]
[1693395236142,0.31790822,1718.9,1718.8,13.98423006]
[1693395236340,0.02707916,1718.9,1718.8,13.98423006]
[1693395237027,0.02707916,1718.9,1718.8,16.25416654]
[1693395239144,0.02707916,1718.9,1718.8,14.72971824]
[1693395242142,1.98428514,1719.0,1718.8,14.72971824]
[1693395242343,1.98428514,1719.0,1718.9,2.447]
[1693395243446,13.15605691,1719.0,1718.9,2.447]
[1693395243648,1.98428514,1719.0,1718.9,2.447]
[1693395244543,0.00872676,1719.0,1718.9,2.447]
[1693395245046,1.78522979,1719.0,1718.9,2.447]
[1693395251249,0.00872676,1719.0,1718.9,2.447]
[1693395251447,12.95697126,1719.0,1718.9,2.447]
[1693395251654,1.78519949,1719.0,1718.9,2.447]
[1693395254760,1.78519949,1719.0,1718.9,2.90143913]
[1693395256357,2.07613001,1719.0,1718.9,2.90143913]
[1693395271559,0.29965728,1719.0,1718.9,2.90143913]
[1693395271757,11.47133279,1719.0,1718.9,2.90143913]
[1693395271959,2.07613001,1719.0,1718.9,2.90143913]
[1693395274867,0.29965728,1719.0,1718.9,2.90143913]
[1693395275067,2.07613001,1719.0,1718.9,2.90143913]
[1693395275868,0.29965728,1719.0,1718.9,2.90143913]
[1693395276069,2.07613001,1719.0,1718.9,2.90143913]
[1693395283376,2.0773183,1719.0,1718.9,2.90143913]
[1693395286181,2.0773183,1719.0,1718.9,2.447]
[1693395291884,7.3103183,1719.0,1718.9,2.447]
[1693395298889,7.3103183,1719.0,1718.9,2.92406379]
[1693395300488,7.3103183,1719.0,1718.9,2.447]
[1693395300992,7.3103183,1719.0,1718.9,3.97414024]
[1693395306594,7.3103183,1719.0,1718.9,2.447]
[1693395307291,7.31033808,1719.0,1718.9,2.447]
[1693395311299,7.31033808,1719.0,1718.9,3.88058176]
[1693395311790,7.31033808,1719.0,1718.9,2.447]
[1693395314701,7.31033808,1719.0,1718.9,3.97422824]
[1693395317898,7.31033808,1719.0,1718.9,5.40781]
[1693395321702,7.31033808,1719.0,1718.9,3.88058176]
[1693395325909,7.31033808,1719.0,1718.9,4.34777751]
[1693395332119,7.31033808,1719.0,1718.9,2.91419575]
[1693395336717,7.31033808,1719.0,1718.9,4.44142399]
[1693395339322,7.31033808,1719.0,1718.9,5.87500575]
[1693395340618,7.31033808,1719.0,1718.9,4.44142399]
[1693395342226,7.31033808,1719.0,1718.9,5.87500575]
[1693395344724,7.31033808,1719.0,1718.9,4.34777751]
[1693395348731,7.31033808,1719.0,1718.9,2.91419575]
[1693395350430,7.31033808,1719.0,1718.9,4.34777751]
[1693395351732,7.31033808,1719.0,1718.9,5.87500575]
[1693395351930,7.31033808,1719.0,1718.9,4.34777751]
[1693395357135,18.48192678,1719.0,1718.9,4.34777751]
[1693395357725,7.31033808,1719.0,1718.9,4.34777751]
[1693395358926,7.31033808,1719.0,1718.9,5.87500575]
[1693395363536,7.31033808,1719.0,1718.9,4.44142399]
[1693395367037,7.31033808,1719.0,1718.9,2.91419575]
[1693395368338,7.31033808,1719.0,1718.9,4.34777751]
[1693395374054,7.31033808,1719.0,1718.9,5.87500575]
[1693395376950,7.31033808,1719.0,1718.9,4.44142399]
[1693395382162,7.31033808,1719.0,1718.9,2.91419575]
[1693395389162,7.31033808,1719.0,1718.9,4.44142399]
[1693395389860,7.31033808,1719.0,1718.9,5.87500575]
[1693395394860,5.53265563,1719.0,1718.9,5.87500575]
[1693395395168,16.70416951,1719.0,1718.9,5.87500575]
[1693395395362,7.31033808,1719.0,1718.9,5.87500575]
[1693395395968,5.53265563,1719.0,1718.9,5.87500575]
[1693395396163,7.31033808,1719.0,1718.9,5.87500575]
[1693395397067,5.53265563,1719.0,1718.9,5.87500575]
[1693395397259,7.31033808,1719.0,1718.9,4.34777751]
[1693395400479,7.31033808,1719.0,1718.9,2.91419575]
[1693395400975,7.31033808,1719.0,1718.9,4.34777751]
[1693395408582,7.31033808,1719.0,1718.9,2.91419575]
[1693395412781,7.31033808,1719.0,1718.9,4.34777751]
[1693395420682,7.31033808,1719.0,1718.9,2.91419575]
[1693395432503,7.31033808,1719.0,1718.9,4.34777751]
[1693395437002,18.4821134,1719.0,1718.9,4.34777751]
[1693395437397,7.31033808,1719.0,1718.9,4.34777751]
[1693395450206,7.31033808,1719.0,1718.9,2.91419575]
[1693395452215,18.48210573,1719.0,1718.9,2.91419575]
[1693395452716,7.31033808,1719.0,1718.9,2.91419575]
[1693395454407,7.31033808,1719.0,1718.9,2.447]
[1693395467324,7.31033808,1719.0,1718.9,3.88058176]
[1693395468929,7.31033808,1719.0,1718.9,2.447]
[1693395477334,11.88243184,1719.0,1718.9,2.447]
[1693395478837,11.88243184,1719.0,1718.9,2.90933248]
[1693395479534,7.31033808,1719.0,1718.9,2.90933248]
[1693395480136,7.31033808,1719.0,1718.9,2.447]
[1693395509969,10.10474939,1719.0,1718.9,2.447]
[1693395510165,21.27668906,1719.0,1718.9,2.447]
[1693395510368,23.05437151,1719.0,1718.9,2.447]
[1693395515569,23.05437151,1719.0,1718.9,2.92012929]
[1693395516869,18.48227775,1719.0,1718.9,2.92012929]
[1693395517069,7.31033808,1719.0,1718.9,2.92012929]
[1693395517276,5.53265563,1719.0,1718.9,2.92012929]
[1693395517475,7.31033808,1719.0,1718.9,2.92012929]
[1693395518591,7.31033808,1719.0,1718.9,2.447]
[1693395530595,7.31033808,1719.0,1718.9,3.88058176]
[1693395542704,7.31033808,1719.0,1718.9,4.33917425]
[1693395547116,10.10635269,1719.0,1718.9,4.33917425]
[1693395547415,21.27829236,1719.0,1718.9,4.33917425]
[1693395547609,23.05597481,1719.0,1718.9,4.33917425]
[1693395554219,18.48227775,1719.0,1718.9,4.33917425]
[1693395554816,7.31033808,1719.0,1718.9,4.33917425]
[1693395557725,7.31033808,1719.0,1718.9,4.33917425]
[1693395572235,7.31033808,1719.0,1718.9,2.90559249]
[1693395572436,7.31033808,1719.0,1718.9,4.33917425]
[1693395606873,7.31033808,1719.0,1718.9,2.90559249]
[1693395608566,7.31033808,1719.0,1718.9,0.45859249]
[1693395608769,7.31033808,1719.0,1718.8,4.11262824]
[1693395609071,9.33750643,1718.9,1718.8,4.11262824]
[1693395609261,9.33750643,1718.9,1718.8,6.25151735]
[1693395609463,11.11518888,1718.9,1718.8,6.25151735]
[1693395609969,11.11518888,1718.9,1718.8,7.68509911]
[1693395610267,11.11518888,1718.9,1718.8,6.25151735]
[1693395610973,10.53338888,1718.9,1718.8,7.68509911]
[1693395611573,9.95158888,1718.9,1718.8,7.68509911]
[1693395611875,9.36978888,1718.9,1718.8,7.68509911]
[1693395612366,7.01030643,1718.9,1718.8,7.68509911]
[1693395612770,6.42850643,1718.9,1718.8,7.68509911]
[1693395613170,5.84670643,1718.9,1718.8,7.68509911]
[1693395613568,5.26490643,1718.9,1718.8,9.97594147]
[1693395614075,4.68310643,1718.9,1718.8,9.97594147]
[1693395614575,4.10130643,1718.9,1718.8,7.68509911]
[1693395614778,3.51950643,1718.9,1718.8,7.68509911]
[1693395615169,2.93770643,1718.9,1718.8,7.68509911]
[1693395615670,2.35590643,1718.9,1718.8,7.68509911]
[1693395616073,1.77410643,1718.9,1718.8,7.68509911]
[1693395616480,1.19230643,1718.9,1718.8,7.68509911]
[1693395616974,0.61050643,1718.9,1718.8,7.68509911]
[1693395617482,0.02870643,1718.9,1718.8,7.68509911]
[1693395617870,11.17196206,1719.0,1718.8,7.68509911]
[1693395618064,5.233,1718.9,1718.8,5.54621]
[1693395618268,7.01068245,1718.9,1718.8,7.85808101]
[1693395618474,5.233,1718.9,1718.8,7.85808101]
[1693395618867,7.01068245,1718.9,1718.8,6.42449925]
[1693395619073,4.6512,1718.9,1718.8,7.85808101]
[1693395619275,4.6512,1718.9,1718.8,6.42449925]
[1693395619977,4.0694,1718.9,1718.8,6.42449925]
[1693395620172,4.0694,1718.9,1718.8,7.85808101]
[1693395620373,3.4876,1718.9,1718.8,7.85808101]
[1693395621180,2.9058,1718.9,1718.8,7.85808101]
[1693395621782,2.9058,1718.9,1718.8,5.54621]
[1693395621984,5.233,1718.9,1718.8,5.54621]
[1693395622182,4.6512,1718.9,1718.8,5.54621]
[1693395622982,4.0694,1718.9,1718.8,5.54621]
[1693395623481,3.4876,1718.9,1718.8,5.54621]
[1693395623782,2.9058,1718.9,1718.8,5.54621]
[1693395624385,2.324,1718.9,1718.8,5.54621]
[1693395624883,1.7422,1718.9,1718.8,5.54621]
[1693395625579,1.1604,1718.9,1718.8,5.54621]
[1693395625973,0.5786,1718.9,1718.8,5.54621]
[1693395626982,0.00870434,1719.0,1718.8,5.54621]
[1693395626983,0.00550434,1719.0,1718.8,5.54621]
[1693395627183,5.233,1718.9,1718.8,5.54621]
[1693395627684,4.6512,1718.9,1718.8,5.54621]
[1693395628283,4.0694,1718.9,1718.8,5.54621]
[1693395628683,3.4876,1718.9,1718.8,5.54621]
[1693395629074,2.9058,1718.9,1718.8,5.54621]
[1693395629786,2.9058,1718.9,1718.8,7.84167683]
[1693395629985,2.324,1718.9,1718.8,7.84167683]
[1693395630392,1.7422,1718.9,1718.8,7.84167683]
[1693395630787,1.1604,1718.9,1718.8,7.84167683]
[1693395630990,1.45133749,1718.9,1718.8,7.84167683]
[1693395631183,0.86953749,1718.9,1718.8,7.84167683]
[1693395631680,0.28773749,1718.9,1718.8,7.84167683]
[1693395631886,0.00550434,1719.0,1718.8,7.84167683]
[1693395632082,4.6512,1718.9,1718.8,5.54621]
[1693395632278,6.42888245,1718.9,1718.8,7.84179169]
[1693395632483,4.0694,1718.9,1718.8,7.84179169]
[1693395632989,5.233,1718.9,1718.8,7.84179169]
[1693395633391,4.6512,1718.9,1718.8,7.84179169]
[1693395633790,4.0694,1718.9,1718.8,7.84179169]
[1693395633986,7.88219476,1718.9,1718.8,7.84179169]
[1693395634290,7.30039476,1718.9,1718.8,5.54621]
[1693395634486,7.30039476,1718.9,1718.8,7.84176543]
[1693395634791,7.30039476,1718.9,1718.8,5.54621]
[1693395635192,6.71859476,1718.9,1718.8,7.84176702]
[1693395635391,6.71859476,1718.9,1718.8,5.54621]
[1693395635690,6.13679476,1718.9,1718.8,5.54621]
[1693395635891,6.13679476,1718.9,1718.8,7.84175054]
[1693395636092,6.13679476,1718.9,1718.8,5.54621]
[1693395636593,5.55499476,1718.9,1718.8,7.84173571]
[1693395636886,1.1604,1718.9,1718.8,4.01898176]
[1693395637290,0.5786,1718.9,1718.8,4.01898176]
[1693395637791,4.50176282,1719.0,1718.8,4.01898176]
[1693395637993,5.233,1718.9,1718.8,4.01898176]
[1693395638287,6.42888245,1718.9,1718.8,4.01898176]
[1693395638489,4.6512,1718.9,1718.8,4.01898176]
[1693395638695,4.0694,1718.9,1718.8,4.01898176]
[1693395639195,3.4876,1718.9,1718.8,4.01898176]
[1693395639694,2.9058,1718.9,1718.8,4.01898176]
[1693395639895,2.324,1718.9,1718.8,4.01898176]
[1693395640799,1.7422,1718.9,1718.8,4.01898176]
[1693395641189,1.1604,1718.9,1718.8,4.01898176]
[1693395641795,0.5786,1718.9,1718.8,4.01898176]
[1693395641989,4.50176282,1719.0,1718.8,4.01898176]
[1693395642192,4.49856282,1719.0,1718.8,4.01898176]
[1693395642998,5.233,1718.9,1718.8,4.01898176]
[1693395644396,5.233,1718.9,1718.8,2.5854]
[1693395644995,9.04576765,1718.9,1718.8,4.11262824]
[1693395645192,9.04576765,1718.9,1718.8,6.54682824]
[1693395645500,10.8234501,1718.9,1718.8,6.54682824]
[1693395645696,9.04576765,1718.9,1718.8,6.54682824]
[1693395648002,9.04576765,1718.9,1718.8,7.98041]
[1693395650993,9.04576765,1718.9,1718.8,10.27600879]
[1693395651501,9.04576765,1718.9,1718.8,7.98041]
[1693395651700,9.33670642,1718.9,1718.8,7.98041]
[1693395651996,5.52393877,1718.9,1718.8,7.98041]
[1693395652197,5.52393877,1718.9,1718.8,6.45318176]
[1693395652401,5.52393877,1718.9,1718.8,7.98041]
[1693395652995,5.52393877,1718.9,1718.8,6.45318176]
[1693395653500,5.52393877,1718.9,1718.8,7.98041]
[1693395654601,5.52393877,1718.9,1718.8,6.54682824]
[1693395655708,5.52393877,1718.9,1718.8,7.98041]
[1693395656795,5.52393877,1718.9,1718.8,6.54682824]
[1693395659200,9.33692348,1718.9,1718.8,8.84255831]
[1693395659408,9.33692348,1718.9,1718.8,10.27614007]
[1693395659604,11.11460593,1718.9,1718.8,11.1506942]
[1693395662306,11.11460593,1718.9,1718.8,9.71711244]
[1693395665505,11.11460593,1718.9,1718.8,11.1506942]
[1693395666110,11.11460593,1718.9,1718.8,9.71711244]
[1693395666703,11.11460593,1718.9,1718.8,8.84255831]
[1693395667300,7.30162122,1718.9,1718.8,6.54682824]
[1693395667707,5.52393877,1718.9,1718.8,6.54682824]
[1693395668406,7.30162122,1718.9,1718.8,6.54682824]
[1693395674211,7.30162122,1718.9,1718.8,8.84279241]
[1693395674411,11.11500481,1718.9,1718.8,8.84279241]
[1693395674907,5.233,1718.9,1718.8,5.0196]
[1693395675113,9.33734661,1718.9,1718.8,8.84291032]
[1693395676019,11.12239959,1718.9,1718.8,8.84291032]
[1693395679808,9.33734661,1718.9,1718.8,8.84291032]
[1693395680019,11.12239959,1718.9,1718.8,8.84291032]
[1693395680214,9.33734661,1718.9,1718.8,8.84291032]
[1693395681711,11.12239959,1718.9,1718.8,8.84291032]
[1693395682021,9.33734661,1718.9,1718.8,8.84291032]
[1693395682819,7.30899255,1718.9,1718.8,8.84291032]
[1693395683021,5.52393957,1718.9,1718.8,8.84291032]
[1693395683218,5.52393957,1718.9,1718.8,6.54692865]
[1693395684314,5.52393957,1718.9,1718.8,8.84299701]
[1693395684621,5.52393957,1718.9,1718.8,6.54692865]
[1693395684923,5.52393957,1718.9,1718.8,8.84298974]
[1693395687226,5.52393957,1718.9,1718.8,10.2765715]
[1693395687417,5.52393957,1718.9,1718.8,7.98051041]
[1693395688815,5.52393957,1718.9,1718.8,6.54692865]
[1693395690020,7.30899255,1718.9,1718.8,6.54692865]
[1693395699239,5.52393957,1718.9,1718.8,6.54692865]
[1693395701543,7.30899255,1718.9,1718.8,6.54692865]
[1693395703541,7.30899255,1718.9,1718.8,7.98051041]
[1693395704944,7.30899255,1718.9,1718.8,6.54692865]
[1693395705645,10.51679255,1718.9,1718.8,1.52732865]
[1693395705946,9.89563957,1718.9,1718.7,0.00872676]
[1693395706245,10.09817144,1718.8,1718.7,0.00872676]
[1693395706547,23.05711437,1718.8,1718.7,0.00872676]
[1693395707742,18.4828825,1718.8,1718.7,0.00872676]
[1693395709246,16.7219597,1718.8,1718.7,0.00872676]
[1693395710037,16.7219597,1718.8,1718.6,0.90522491]
[1693395710243,12.53871121,1718.7,1718.6,0.90522491]
[1693395710943,14.32376419,1718.7,1718.6,0.90522491]
[1693395713847,12.53871121,1718.7,1718.6,0.90522491]
[1693395714444,12.53871121,1718.7,1718.5,0.46868144]
[1693395714445,8.73173957,1718.7,1718.5,0.46868144]
[1693395714647,9.32862083,1718.6,1718.5,2.60332777]
[1693395715146,11.11367381,1718.6,1718.5,2.60332777]
[1693395716543,7.30899255,1718.6,1718.5,2.60332777]
[1693395716842,8.47309255,1718.6,1718.5,0.00872777]
[1693395717250,22.43641346,1718.6,1718.2,2.4573]
[1693395717438,11.48189112,1718.3,1718.0,2.4448]